fUSD/lending_fUSD_20250930
["ID","MTS","AMOUNT","RATE_DAILY","PERIOD"]
[388558111,1759240347269,-938.56,0.00020273,2]
[388558112,1759240347278,-601.54584708,0.00020273,2]
[388558113,1759240347287,-500.0,0.00020273,2]
[388558114,1759240347297,-2151.04,0.00020273,2]
[388558115,1759240347307,-500.0,0.00020273,2]
[388558116,1759240347317,-500.0,0.00020273,2]
[388558117,1759240347326,-1542.41,0.00020273,2]
[388558118,1759240347336,-500.0,0.00020273,2]
[388558119,1759240347347,-3516.79,0.00020273,2]
[388558120,1759240347359,-500.0,0.00020273,2]
[388558121,1759240347368,-539.61274814,0.00020273,2]
[388558122,1759240347389,-3168.12,0.00020273,2]
[388558123,1759240347399,-583.0,0.00020273,2]
[388558124,1759240347409,-930.23,0.00020273,2]
[388558125,1759240347419,-500.0,0.00020273,2]
[388558126,1759240347428,-3884.01,0.00020273,2]
[388558127,1759240347438,-500.0,0.00020273,2]
[388558128,1759240347448,-2882.92,0.00020273,2]
[388558129,1759240347457,-500.0,0.00020273,2]
[388558130,1759240347468,-589.91,0.00020273,2]
[388558131,1759240347480,-669.58,0.00020273,2]
[388558132,1759240347492,-500.0,0.00020273,2]
[388558133,1759240347503,-3512.3,0.00020273,2]
[388558134,1759240347514,-500.0,0.00020273,2]
[388558135,1759240347524,-3713.1,0.00020273,2]
[388558136,1759240347535,-939.33,0.00020273,2]
[388558137,1759240347546,-547.83,0.00020273,2]
[388558138,1759240347556,-1922.14,0.00020273,2]
[388558139,1759240347566,-1367.87,0.00020273,2]
[388558140,1759240347576,-1836.55,0.00020273,2]
[388558141,1759240347585,-500.0,0.00020273,2]
[388558142,1759240347596,-500.0,0.00020273,2]
[388558143,1759240347607,-645.84,0.00020273,2]
[388558144,1759240347616,-906.86,0.00020273,2]
[388558145,1759240347626,-500.19,0.00020273,2]
[388558146,1759240347636,-409.13724973,0.00020273,2]
[388558147,1759240347645,-500.0,0.00020273,2]
[388558148,1759240347655,-500.0,0.00020273,2]
[388558149,1759240347666,-872.23,0.00020273,2]
[388558150,1759240347676,-703.65,0.00020273,2]
[388558151,1759240347686,-635.26,0.00020273,2]
[388558152,1759240347696,-610.56,0.00020273,2]
[388558153,1759240347706,-5296.49,0.00020273,2]
[388558154,1759240347716,-831.12,0.00020273,2]
[388558155,1759240347726,-657.04,0.00020273,2]
[388558156,1759240347735,-2138.48,0.00020273,2]
[388558157,1759240347745,-1814.33,0.00020273,2]
[388558158,1759240347755,-500.0,0.00020273,2]
[388558159,1759240347765,-934.1,0.00020273,2]
[388558160,1759240347779,-500.0,0.00020273,2]
[388558161,1759240347789,-4201.08,0.00020273,2]
[388558162,1759240347799,-425.56615744,0.00020273,2]
[388558163,1759240347810,-500.0,0.00020273,2]
[388558164,1759240347820,-1096.67,0.00020273,2]
[388558165,1759240347830,-4322.86,0.00020273,2]
[388558166,1759240347840,-925.67,0.00020273,2]
[388558167,1759240347851,-1246.74,0.00020273,2]
[388558168,1759240347863,-3246.07,0.00020273,2]
[388558169,1759240347874,-1879.37,0.00020273,2]
[388558170,1759240347884,-500.0,0.00020273,2]
[388558171,1759240347898,-500.0,0.00020273,2]
[388558172,1759240347911,-2201.18,0.00020273,2]
[388558173,1759240347924,-500.0,0.00020273,2]
[388558174,1759240347935,-496.02402849,0.00020273,2]
[388558175,1759240347945,-2013.49,0.00020273,2]
[388558176,1759240347955,-981.64,0.00020273,2]
[388558177,1759240347965,-500.0,0.00020273,2]
[388558178,1759240347976,-1331.16,0.00020273,2]
[388558179,1759240347986,-879.12,0.00020273,2]
[388558180,1759240347996,-598.23,0.00020273,2]
[388558181,1759240348006,-736.23,0.00020273,2]
[388558182,1759240348016,-710.39,0.00020273,2]
[388558183,1759240348025,-500.0,0.00020273,2]
[388558184,1759240348035,-500.0,0.00020273,2]
[388558185,1759240348044,-500.0,0.00020273,2]
[388558186,1759240348054,-2843.26,0.00020273,2]
[388558187,1759240348064,-2775.75,0.00020273,2]
[388558188,1759240348074,-500.0,0.00020273,2]
[388558189,1759240348083,-2015.99,0.00020273,2]
[388558190,1759240348093,-500.0,0.00020273,2]
[388558191,1759240348105,-1744.81,0.00020273,2]
[388558192,1759240348114,-500.0,0.00020273,2]
[388558193,1759240348124,-4492.44,0.00020273,2]
[388558194,1759240348134,-500.0,0.00020273,2]
[388558195,1759240348143,-1567.07,0.00020273,2]
[388558196,1759240348154,-500.0,0.00020273,2]
[388558197,1759240348164,-500.0,0.00020273,2]
[388558198,1759240348174,-1731.1,0.00020273,2]
[388558199,1759240348185,-1622.26,0.00020273,2]
[388558200,1759240348202,-786.49,0.00020273,2]
[388558201,1759240348212,-4390.54,0.00020273,2]
[388558202,1759240348222,-500.0,0.00020273,2]
[388558203,1759240348231,-5493.72,0.00020273,2]
[388558204,1759240348241,-315.21,0.00020273,2]
[388558205,1759240348250,-500.0,0.00020273,2]
[388558206,1759240348260,-1863.44,0.00020273,2]
[388558207,1759240348270,-1202.76,0.00020273,2]
[388558208,1759240348281,-500.0,0.00020273,2]
[388558209,1759240348290,-2774.48,0.00020273,2]
[388558210,1759240348300,-5219.82,0.00020273,2]
[388558211,1759240348310,-1956.66,0.00020273,2]
[388558212,1759240348319,-1318.96,0.00020273,2]
[388558213,1759240348329,-4927.14,0.00020273,2]
[388558214,1759240348339,-1978.62,0.00020273,2]
[388558215,1759240348349,-500.0,0.00020273,2]
[388558216,1759240348362,-500.0,0.00020273,2]
[388558217,1759240348372,-500.0,0.00020273,2]
[388558218,1759240348381,-1583.44,0.00020273,2]
[388558219,1759240348391,-4340.48,0.00020273,2]
[388558220,1759240348401,-1073.21,0.00020273,2]
[388558221,1759240348410,-626.84,0.00020273,2]
[388558222,1759240348420,-1300.2,0.00020273,2]
[388558223,1759240348430,-500.0,0.00020273,2]
[388558224,1759240348440,-2633.64,0.00020273,2]
[388558225,1759240348450,-2610.4,0.00020273,2]
[388558226,1759240348460,-989.47,0.00020273,2]
[388558227,1759240348470,-1169.32,0.00020273,2]
[388558228,1759240348480,-500.0,0.00020273,2]
[388558229,1759240348489,-649.78,0.00020273,2]
[388558230,1759240348802,-500.0,0.00020273,2]
[388558231,1759240348812,-4104.25,0.00020273,2]
[388558232,1759240348822,-500.0,0.00020273,2]
[388558233,1759240348833,-3027.16,0.00020273,2]
[388558234,1759240348846,-500.0,0.00020273,2]
[388558235,1759240348857,-3443.7,0.00020273,2]
[388558236,1759240348866,-654.94,0.00020273,2]
[388558237,1759240348875,-955.76,0.00020273,2]
[388558238,1759240348885,-500.0,0.00020273,2]
[388558239,1759240348895,-500.0,0.00020273,2]
[388558240,1759240348904,-865.96,0.00020273,2]
[388558241,1759240348914,-500.0,0.00020273,2]
[388558242,1759240348927,-3571.88,0.00020273,2]
[388558243,1759240348937,-5002.0,0.00020273,2]
[388558244,1759240348947,-500.0,0.00020273,2]
[388558245,1759240348958,-4248.48,0.00020273,2]
[388558246,1759240348968,-613.11,0.00020273,2]
[388558247,1759240348978,-1854.6,0.00020273,2]
[388558248,1759240348988,-500.0,0.00020273,2]
[388558249,1759240348997,-847.88,0.00020273,2]
[388558250,1759240349007,-760.35,0.00020273,2]
[388558251,1759240349017,-770.21,0.00020273,2]
[388558252,1759240349027,-3311.28,0.00020273,2]
[388558253,1759240349036,-559.36,0.00020273,2]
[388558254,1759240349046,-500.0,0.00020273,2]
[388558255,1759240349056,-672.26,0.00020273,2]
[388558256,1759240349065,-3545.03,0.00020273,2]
[388558257,1759240349075,-618.17,0.00020273,2]
[388558258,1759240349085,-4138.34,0.00020273,2]
[388558259,1759240349094,-3363.37,0.00020273,2]
[388558260,1759240349105,-2219.19,0.00020273,2]
[388558261,1759240349115,-11135.57,0.00020273,2]
[388558262,1759240349124,-621.31,0.00020273,2]
[388558263,1759240349134,-500.0,0.00020273,2]
[388558264,1759240349143,-1141.7,0.00020273,2]
[388558265,1759240349155,-500.34,0.00020273,2]
[388558266,1759240349165,-2474.62,0.00020273,2]
[388558267,1759240349174,-500.0,0.00020273,2]
[388558268,1759240349185,-1934.01,0.00020273,2]
[388558269,1759240349194,-745.96,0.00020273,2]
[388558270,1759240349204,-500.0,0.00020273,2]
[388558271,1759240349213,-6814.98,0.00020273,2]
[388558272,1759240349223,-1325.61,0.00020273,2]
[388558273,1759240349233,-500.0,0.00020273,2]
[388558274,1759240349243,-500.0,0.00020273,2]
[388558275,1759240349252,-500.0,0.00020273,2]
[388558276,1759240349265,-4836.52,0.00020273,2]
[388558277,1759240349276,-10507.95,0.00020273,2]
[388558278,1759240349286,-1355.54,0.00020273,2]
[388558279,1759240349296,-500.0,0.00020273,2]
[388558280,1759240349307,-1963.48,0.00020273,2]
[388558281,1759240349317,-500.0,0.00020273,2]
[388558282,1759240349327,-500.0,0.00020273,2]
[388558283,1759240349337,-500.0,0.00020273,2]
[388558284,1759240349349,-3372.83,0.00020273,2]
[388558285,1759240349359,-1073.2,0.00020273,2]
[388558286,1759240349368,-500.0,0.00020273,2]
[388558287,1759240349378,-557.06,0.00020273,2]
[388558288,1759240349388,-500.0,0.00020273,2]
[388558289,1759240349397,-5791.96,0.00020273,2]
[388558290,1759240349407,-500.0,0.00020273,2]
[388558291,1759240349416,-500.0,0.00020273,2]
[388558292,1759240349426,-500.0,0.00020273,2]
[388558293,1759240349435,-3946.61,0.00020273,2]
[388558294,1759240349445,-500.0,0.00020273,2]
[388558295,1759240349454,-333.13778918,0.00020273,2]
[388558296,1759240349465,-3259.44,0.00020273,2]
[388558297,1759240349476,-937.61,0.00020273,2]
[388558298,1759240349486,-3163.57,0.00020273,2]
[388558299,1759240349496,-5551.49,0.00020273,2]
[388558300,1759240349506,-3075.3,0.00020273,2]
[388558301,1759240349516,-500.0,0.00020273,2]
[388558302,1759240349526,-704.45,0.00020273,2]
[388558303,1759240349535,-357.96131935,0.00020273,2]
[388558304,1759240349544,-509.5,0.00020273,2]
[388558305,1759240349555,-8599.07,0.00020273,2]
[388558306,1759240349564,-1849.62,0.00020273,2]
[388558307,1759240349574,-3998.87,0.00020273,2]
[388558308,1759240349585,-500.0,0.00020273,2]
[388558309,1759240349595,-500.0,0.00020273,2]
[388558310,1759240349606,-500.0,0.00020273,2]
[388558311,1759240349616,-4252.51,0.00020273,2]
[388558312,1759240349627,-893.75,0.00020273,2]
[388558313,1759240349636,-571.76,0.00020273,2]
[388558314,1759240349645,-500.0,0.00020273,2]
[388558315,1759240349655,-9367.62,0.00020273,2]
[388558316,1759240349664,-500.0,0.00020273,2]
[388558317,1759240349673,-500.0,0.00020273,2]
[388558318,1759240349684,-500.0,0.00020273,2]
[388558319,1759240349694,-6111.21,0.00020273,2]
[388558320,1759240349703,-805.4,0.00020273,2]
[388558321,1759240349713,-500.0,0.00020273,2]
[388558322,1759240349723,-500.0,0.00020273,2]
[388558323,1759240349733,-787.29,0.00020273,2]
[388558324,1759240349743,-599.39,0.00020273,2]
[388558325,1759240349752,-3187.48,0.00020273,2]
[388558326,1759240349762,-500.0,0.00020273,2]
[388558327,1759240349771,-966.27,0.00020273,2]
[388558328,1759240349780,-5803.24,0.00020273,2]
[388558329,1759240349790,-11810.4,0.00020273,2]
[388558330,1759240349800,-500.0,0.00020273,2]
[388558331,1759240349810,-2300.54,0.00020273,2]
[388558332,1759240349819,-500.0,0.00020273,2]
[388558333,1759240349829,-3419.59,0.00020273,2]
[388558334,1759240349838,-2771.3,0.00020273,2]
[388558335,1759240349849,-500.0,0.00020273,2]
[388558336,1759240349859,-5786.2,0.00020273,2]
[388558337,1759240349869,-3222.59,0.00020273,2]
[388558338,1759240349879,-1093.65,0.00020273,2]
[388558339,1759240349890,-8791.84,0.00020273,2]
[388558340,1759240349899,-4612.6,0.00020273,2]
[388558341,1759240349909,-500.0,0.00020273,2]
[388558342,1759240349920,-500.0,0.00020273,2]
[388558343,1759240349929,-500.0,0.00020273,2]
[388558344,1759240349939,-3605.76,0.00020273,2]
[388558345,1759240349948,-446.39,0.00020273,2]
[388558346,1759240349958,-3520.57,0.00020273,2]
[388558347,1759240349968,-3604.25,0.00020273,2]
[388558348,1759240349978,-454.04119573,0.00020273,2]
[388558349,1759240349988,-4033.8,0.00020273,2]
[388558350,1759240349998,-965.82,0.00020273,2]
[388558351,1759240350012,-20780.06,0.00020273,2]
[388558352,1759240350022,-500.0,0.00020273,2]
[388558353,1759240350032,-500.0,0.00020273,2]
[388558354,1759240350042,-738.87,0.00020273,2]
[388558355,1759240350051,-610.04,0.00020273,2]
[388558356,1759240350061,-2288.45,0.00020273,2]
[388558357,1759240350070,-511.94,0.00020273,2]
[388558358,1759240350080,-899.45,0.00020273,2]
[388558359,1759240350089,-6082.65,0.00020273,2]
[388558360,1759240350099,-546.47,0.00020273,2]
[388558361,1759240350108,-500.0,0.00020273,2]
[388558362,1759240350118,-2792.99,0.00020273,2]
[388558363,1759240350131,-2345.29,0.00020273,2]
[388558364,1759240350140,-836.63,0.00020273,2]
[388558365,1759240350150,-500.0,0.00020273,2]
[388558366,1759240350160,-3532.55,0.00020273,2]
[388558367,1759240350169,-584.29257412,0.00020273,2]
[388558368,1759240350179,-2744.05,0.00020273,2]
[388558369,1759240350188,-500.0,0.00020273,2]
[388558370,1759240350197,-2886.79,0.00020273,2]
[388558371,1759240350207,-708.23,0.00020273,2]
[388558372,1759240350216,-500.0,0.00020273,2]
[388558373,1759240350226,-10430.65,0.00020273,2]
[388558374,1759240350235,-500.0,0.00020273,2]
[388558375,1759240350244,-854.6,0.00020273,2]
[388558376,1759240350255,-500.0,0.00020273,2]
[388558377,1759240350266,-1762.85,0.00020273,2]
[388558378,1759240350280,-500.0,0.00020273,2]
[388558379,1759240350292,-500.0,0.00020273,2]
[388558380,1759240350302,-500.0,0.00020273,2]
[388558381,1759240350311,-4052.2,0.00020273,2]
[388558382,1759240350320,-697.8,0.00020273,2]
[388558383,1759240350330,-4990.77,0.00020273,2]
[388558384,1759240350340,-1859.04,0.00020273,2]
[388558385,1759240350350,-4685.47,0.00020273,2]
[388558386,1759240350361,-3466.13,0.00020273,2]
[388558387,1759240350370,-500.0,0.00020273,2]
[388558388,1759240350379,-2922.79,0.00020273,2]
[388558389,1759240350389,-500.0,0.00020273,2]
[388558390,1759240350398,-509.44,0.00020273,2]
[388558391,1759240350408,-3442.87,0.00020273,2]
[388558392,1759240350418,-500.0,0.00020273,2]
[388558393,1759240350427,-500.0,0.00020273,2]
[388558394,1759240350436,-500.0,0.00020273,2]
[388558395,1759240350446,-4827.63,0.00020273,2]
[388558396,1759240350456,-526.47,0.00020273,2]
[388558397,1759240350467,-929.49,0.00020273,2]
[388558398,1759240350476,-500.0,0.00020273,2]
[388558399,1759240350485,-576.16,0.00020273,2]
[388558400,1759240350494,-1406.64,0.00020273,2]
[388558401,1759240350504,-500.0,0.00020273,2]
[388558402,1759240350513,-1954.99,0.00020273,2]
[388558403,1759240350522,-540.37,0.00020273,2]
[388558404,1759240350531,-500.0,0.00020273,2]
[388558405,1759240350541,-1043.47,0.00020273,2]
[388558406,1759240350550,-3925.81,0.00020273,2]
[388558407,1759240350560,-1045.94,0.00020273,2]
[388558408,1759240350570,-645.22,0.00020273,2]
[388558409,1759240350579,-3484.65,0.00020273,2]
[388558410,1759240350588,-500.0,0.00020273,2]
[388558411,1759240350598,-2283.42,0.00020273,2]
[388558412,1759240350608,-2811.19,0.00020273,2]
[388558413,1759240350617,-2895.27,0.00020273,2]
[388558414,1759240350626,-2816.6,0.00020273,2]
[388558415,1759240350636,-535.69,0.00020273,2]
[388558416,1759240350646,-1338.26,0.00020273,2]
[388558417,1759240350656,-2999.63,0.00020273,2]
[388558418,1759240350664,-500.0,0.00020273,2]
[388558419,1759240350674,-3113.64,0.00020273,2]
[388558420,1759240350683,-19762.18,0.00020273,2]
[388558421,1759240350693,-1174.76,0.00020273,2]
[388558422,1759240350703,-4837.09,0.00020273,2]
[388558423,1759240350712,-947.63,0.00020273,2]
[388558424,1759240350721,-3304.23,0.00020273,2]
[388558425,1759240350731,-886.09,0.00020273,2]
[388558426,1759240350741,-500.0,0.00020273,2]
[388558427,1759240350750,-1427.41,0.00020273,2]
[388558428,1759240350760,-2936.04,0.00020273,2]
[388558429,1759240350770,-397.1256375,0.00020273,2]
[388558430,1759240350779,-1072.81,0.00020273,2]
[388558431,1759240350789,-5730.05,0.00020273,2]
[388558432,1759240350798,-9933.01,0.00020273,2]
[388558433,1759240350808,-8309.91,0.00020273,2]
[388558434,1759240350818,-1695.32,0.00020273,2]
[388558435,1759240350829,-443.31360617,0.00020273,2]
[388558436,1759240350839,-1068.35,0.00020273,2]
[388558437,1759240350849,-1099.77,0.00020273,2]
[388558438,1759240350860,-1860.95,0.00020273,2]
[388558439,1759240350870,-614.48847602,0.00020273,2]
[388558440,1759240350881,-3886.98,0.00020273,2]
[388558441,1759240350891,-2834.78,0.00020273,2]
[388558442,1759240350901,-719.55,0.00020273,2]
[388558443,1759240350911,-5464.08,0.00020273,2]
[388558444,1759240350921,-4218.11,0.00020273,2]
[388558445,1759240350932,-339.50414435,0.00020273,2]
[388558446,1759240350941,-1340.22,0.00020273,2]
[388558447,1759240350951,-7280.81,0.00020273,2]
[388558448,1759240350960,-3179.64,0.00020273,2]
[388558449,1759240350970,-4400.59,0.00020273,2]
[388558450,1759240350979,-500.0,0.00020273,2]
[388558451,1759240350989,-3118.0,0.00020273,2]
[388558452,1759240350999,-1382.23,0.00020273,2]
[388558453,1759240351009,-1085.95,0.00020273,2]
[388558454,1759240351018,-5606.8,0.00020273,2]
[388558455,1759240351028,-500.0,0.00020273,2]
[388558456,1759240351037,-2191.69,0.00020273,2]
[388558457,1759240351047,-500.0,0.00020273,2]
[388558458,1759240351056,-1121.59,0.00020273,2]
[388558459,1759240351065,-500.0,0.00020273,2]
[388558460,1759240351075,-1821.92,0.00020273,2]
[388558461,1759240351085,-500.0,0.00020273,2]
[388558462,1759240351094,-500.0,0.00020273,2]
[388558463,1759240351105,-500.0,0.00020273,2]
[388558464,1759240351114,-4022.76,0.00020273,2]
[388558465,1759240351124,-500.0,0.00020273,2]
[388558466,1759240351133,-3228.92,0.00020273,2]
[388558467,1759240351143,-1155.95,0.00020273,2]
[388558468,1759240351153,-500.0,0.00020273,2]
[388558469,1759240351163,-500.0,0.00020273,2]
[388558470,1759240351172,-500.0,0.00020273,2]
[388558471,1759240351182,-715.09,0.00020273,2]
[388558472,1759240351191,-2361.75,0.00020273,2]
[388558473,1759240351201,-1154.61,0.00020273,2]
[388558474,1759240351210,-500.0,0.00020273,2]
[388558475,1759240351219,-3696.96,0.00020273,2]
[388558476,1759240351228,-22451.0,0.00020273,2]
[388558477,1759240351238,-500.0,0.00020273,2]
[388558478,1759240351247,-2532.13,0.00020273,2]
[388558479,1759240351257,-1235.06,0.00020273,2]
[388558480,1759240351269,-550.71,0.00020273,2]
[388558481,1759240351279,-500.0,0.00020273,2]
[388558482,1759240351289,-500.0,0.00020273,2]
[388558483,1759240351298,-1249.63,0.00020273,2]
[388558484,1759240351307,-4834.6,0.00020273,2]
[388558485,1759240351317,-2260.51,0.00020273,2]
[388558486,1759240351326,-500.0,0.00020273,2]
[388558487,1759240351335,-500.0,0.00020273,2]
[388558488,1759240351345,-500.0,0.00020273,2]
[388558489,1759240351355,-6286.35,0.00020273,2]
[388558490,1759240351365,-6442.41,0.00020273,2]
[388558491,1759240351374,-2171.4,0.00020273,2]
[388558492,1759240351383,-8170.98,0.00020273,2]
[388558493,1759240351392,-2781.0,0.00020273,2]
[388558494,1759240351402,-771.77,0.00020273,2]
[388558495,1759240351411,-500.0,0.00020273,2]
[388558496,1759240351420,-663.14,0.00020273,2]
[388558497,1759240351429,-500.0,0.00020273,2]
[388558498,1759240351439,-2939.81,0.00020273,2]
[388558499,1759240351449,-500.0,0.00020273,2]
[388558500,1759240351458,-3571.8,0.00020273,2]
[388558501,1759240351468,-3082.09,0.00020273,2]
[388558502,1759240351478,-4639.88,0.00020273,2]
[388558503,1759240351487,-4726.46,0.00020273,2]
[388558504,1759240351497,-1404.94,0.00020273,2]
[388558505,1759240351507,-500.0,0.00020273,2]
[388558506,1759240351517,-934.2,0.00020273,2]
[388558507,1759240351528,-4502.44,0.00020273,2]
[388558508,1759240351539,-500.0,0.00020273,2]
[388558509,1759240351549,-3406.59,0.00020273,2]
[388558510,1759240351558,-500.0,0.00020273,2]
[388558511,1759240351569,-500.0,0.00020273,2]
[388558512,1759240351579,-500.0,0.00020273,2]
[388558513,1759240351589,-540.5,0.00020273,2]
[388558514,1759240351602,-4690.1,0.00020273,2]
[388558515,1759240351613,-500.0,0.00020273,2]
[388558516,1759240351622,-3481.91,0.00020273,2]
[388558517,1759240351633,-1038.94,0.00020273,2]
[388558518,1759240351643,-6488.25,0.00020273,2]
[388558519,1759240351652,-3323.26,0.00020273,2]
[388558520,1759240351662,-500.0,0.00020273,2]
[388558521,1759240351671,-1369.59,0.00020273,2]
[388558522,1759240351681,-5530.75,0.00020273,2]
[388558523,1759240351691,-500.0,0.00020273,2]
[388558524,1759240351700,-1181.95,0.00020273,2]
[388558525,1759240351710,-1390.21,0.00020273,2]
[388558526,1759240351719,-1361.61,0.00020273,2]
[388558527,1759240351729,-500.0,0.00020273,2]
[388558528,1759240351738,-500.0,0.00020273,2]
[388558529,1759240351748,-5411.44,0.00020273,2]
[388558530,1759240351757,-1581.45,0.00020273,2]
[388558531,1759240351766,-3964.99,0.00020273,2]
[388558532,1759240351775,-3748.58,0.00020273,2]
[388558533,1759240351785,-2676.52,0.00020273,2]
[388558534,1759240351794,-654.98,0.00020273,2]
[388558535,1759240351803,-730.34,0.00020273,2]
[388558536,1759240351813,-3552.31,0.00020273,2]
[388558537,1759240351822,-2765.4,0.00020273,2]
[388558538,1759240351831,-939.77,0.00020273,2]
[388558539,1759240351841,-1000.94,0.00020273,2]
[388558540,1759240351851,-500.0,0.00020273,2]
[388558541,1759240351862,-1934.59,0.00020273,2]
[388558542,1759240351872,-1474.11,0.00020273,2]
[388558543,1759240351882,-552.85,0.00020273,2]
[388558544,1759240351891,-500.0,0.00020273,2]
[388558545,1759240351901,-511.55,0.00020273,2]
[388558546,1759240351910,-511.55,0.00020273,2]
[388558547,1759240351920,-2157.39,0.00020273,2]
[388558548,1759240351929,-18492.31,0.00020273,2]
[388558549,1759240351939,-5681.34,0.00020273,2]
[388558550,1759240351948,-500.0,0.00020273,2]
[388558551,1759240351958,-1186.56,0.00020273,2]
[388558552,1759240351968,-500.0,0.00020273,2]
[388558553,1759240351978,-541.6,0.00020273,2]
[388558554,1759240351988,-500.0,0.00020273,2]
[388558555,1759240351997,-500.0,0.00020273,2]
[388558556,1759240352006,-1119.61,0.00020273,2]
[388558557,1759240352016,-1172.72,0.00020273,2]
[388558558,1759240352025,-5357.55,0.00020273,2]
[388558559,1759240352034,-583.56,0.00020273,2]
[388558560,1759240352044,-3680.77,0.00020273,2]
[388558561,1759240352054,-7317.79,0.00020273,2]
[388558562,1759240352063,-2723.4,0.00020273,2]
[388558563,1759240352072,-500.0,0.00020273,2]
[388558564,1759240352081,-1429.01,0.00020273,2]
[388558565,1759240352091,-688.57,0.00020273,2]
[388558566,1759240352100,-863.38,0.00020273,2]
[388558567,1759240352111,-1249.51,0.00020273,2]
[388558568,1759240352120,-739.07,0.00020273,2]
[388558569,1759240352130,-2415.34,0.00020273,2]
[388558570,1759240352139,-505.11,0.00020273,2]
[388558571,1759240352148,-3504.09,0.00020273,2]
[388558572,1759240352158,-5494.11,0.00020273,2]
[388558573,1759240352167,-1836.14,0.00020273,2]
[388558574,1759240352177,-995.39,0.00020273,2]
[388558575,1759240352186,-6705.33,0.00020273,2]
[388558576,1759240352195,-500.0,0.00020273,2]
[388558577,1759240352205,-6781.75,0.00020273,2]
[388558578,1759240352214,-7000.6,0.00020273,2]
[388558579,1759240352223,-4925.05,0.00020273,2]
[388558580,1759240352232,-1562.72,0.00020273,2]
[388558581,1759240352241,-500.0,0.00020273,2]
[388558582,1759240352250,-1497.08,0.00020273,2]
[388558583,1759240352260,-8103.56,0.00020273,2]
[388558584,1759240352272,-500.0,0.00020273,2]
[388558585,1759240352281,-3281.17,0.00020273,2]
[388558586,1759240352291,-4136.69,0.00020273,2]
[388558587,1759240352300,-500.0,0.00020273,2]
[388558588,1759240352310,-1715.07,0.00020273,2]
[388558589,1759240352320,-500.0,0.00020273,2]
[388558590,1759240352330,-5894.74,0.00020273,2]
[388558591,1759240352340,-5362.41,0.00020273,2]
[388558592,1759240352350,-1341.41,0.00020273,2]
[388558593,1759240352362,-2755.02,0.00020273,2]
[388558594,1759240352372,-500.0,0.00020273,2]
[388558595,1759240352381,-10208.2,0.00020273,2]
[388558596,1759240352391,-858.6,0.00020273,2]
[388558597,1759240352400,-3373.16,0.00020273,2]
[388558598,1759240352410,-647.37,0.00020273,2]
[388558599,1759240352419,-1570.13,0.00020273,2]
[388558600,1759240352430,-1122.49,0.00020273,2]
[388558601,1759240352439,-1556.2,0.00020273,2]
[388558602,1759240352449,-500.0,0.00020273,2]
[388558603,1759240352459,-3871.47,0.00020273,2]
[388558604,1759240352469,-1684.89,0.00020273,2]
[388558605,1759240352479,-931.46,0.00020273,2]
[388558606,1759240352488,-500.0,0.00020273,2]
[388558607,1759240352499,-4011.93,0.00020273,2]
[388558608,1759240352508,-500.0,0.00020273,2]
[388558609,1759240352518,-500.0,0.00020273,2]
[388558610,1759240352527,-500.0,0.00020273,2]